{"text_format":"3","workbook":"xlsx","n_sheets":1,"sheets":["Kuluaruanne"],"not_rendered":{"images":2,"defined_names":12},"read":"whole","date_system":"1900"}

{"sheet":"Kuluaruanne","index":0,"n_rows":24,"n_cols":13,"rows_kept":24,"merged":[[3,2,3,3],[3,5,3,6],[3,9,3,10],[4,2,4,3],[4,5,4,6],[4,9,4,10],[5,2,5,3],[5,5,5,6],[5,9,5,10],[6,2,6,3],[6,5,6,6],[6,9,6,10],[7,9,7,10]]}
[null,"KULUARUANNE"]
[null,"AS Vetevalla"]
[null,"Kiigepuu tee 1, Pärnu, 12345"]
[null,"TELEFON",4255550121,null,"NIMI","Anu Pärn",null,null,"EESMÄRK","Iga-aastane müügiseminar",null,"LÄBISÕIDUTARIIF",{"v":0.5,"d":"€0.50/km"}]
[null,"FAKS",4255550122,null,"OSAKOND","Müük",null,null,"ALGUS",{"$f":"IFERROR(MIN(Kulud[KUUPÄEV]),\"\")","v":"2018-06-04"},null,"EINETARIIF",{"v":30,"d":"€30.00/dan"}]
[null,"MEILIAADRESS","info@vetevalla.ee",null,"AMETIKOHT","Tegevdirektor",null,null,"LÕPP",{"$f":"IFERROR(MAX(Kulud[KUUPÄEV]),\"\")","v":"2018-07-04"},null,"HOTELLITARIIF",{"v":200,"d":"€200.00/noč"}]
[null,"VEEBISAIT","www.vetevalla.ee",null,"ÜLEMUS","Marten Lõhmus",null,null,"KOOSTAJA","Anu Pärn",null,"TELEFONITARIIF",{"v":10,"d":"€10.00/dan"}]
[{"$nulls":8},"KINNITAJA","Marten Lõhmus",null,"MUU TARIIF",{"v":50,"d":"€50.00/dan"}]
[]
[null,"KUUPÄEV","KONTO","KIRJELDUS","HOTELL","TRANSPORT","EINED","TELEFON","MUU","LÄBISÕIDUMÕÕDIKU \nALGNÄIT","LÄBISÕIDUMÕÕDIKU \nLÕPPNÄIT","LÄBISÕIT \nKOKKU","KOKKU "]
[null,{"$f":"TODAY()","v":"2018-06-04"},"Müük","Läbisõit",{"$nulls":4},{"v":50,"d":"50.00 €"},{"v":11378.5,"d":"11,378.5 km"},{"v":11456.2,"d":"11,456.2 km"},{"$f":"IF(COUNTA(Kulud[[#This Row],[LÄBISÕIDUMÕÕDIKU \nALGNÄIT]:[LÄBISÕIDUMÕÕDIKU \nLÕPPNÄIT]])=2,(Kulud[[#This Row],[LÄBISÕIDUMÕÕDIKU \nLÕPPNÄIT]]-Kulud[[#This Row],[LÄBISÕIDUMÕÕDIKU \nALGNÄIT]])*Läbisõidutariif,\"\")","v":{"v":38.850000000000364,"d":"38.85 €"}},{"$f":"IF(COUNTA(Kulud[[#This Row],[KUUPÄEV]:[LÄBISÕIDUMÕÕDIKU \nLÕPPNÄIT]])=0,\"\",SUM(Kulud[[#This Row],[HOTELL]:[TRANSPORT]],Kulud[[#This Row],[EINED]:[MUU]],((Kulud[[#This Row],[LÄBISÕIDUMÕÕDIKU \nLÕPPNÄIT]]-Kulud[[#This Row],[LÄBISÕIDUMÕÕDIKU \nALGNÄIT]])*(Läbisõidutariif))))","v":{"v":88.85000000000036,"d":"88.85 €"}}]
[null,{"$f":"TODAY()+30","v":"2018-07-04"},"Müük","Konverents",{"v":445,"d":"445.00 €"},{"v":225,"d":"225.00 €"},{"v":20,"d":"20.00 €"},null,{"v":5,"d":"5.00 €"},{"v":11500,"d":"11,500.0 km"},{"v":11560,"d":"11,560.0 km"},{"$f":"IF(COUNTA(Kulud[[#This Row],[LÄBISÕIDUMÕÕDIKU \nALGNÄIT]:[LÄBISÕIDUMÕÕDIKU \nLÕPPNÄIT]])=2,(Kulud[[#This Row],[LÄBISÕIDUMÕÕDIKU \nLÕPPNÄIT]]-Kulud[[#This Row],[LÄBISÕIDUMÕÕDIKU \nALGNÄIT]])*Läbisõidutariif,\"\")","v":{"v":30,"d":"30.00 €"}},{"$f":"IF(COUNTA(Kulud[[#This Row],[KUUPÄEV]:[LÄBISÕIDUMÕÕDIKU \nLÕPPNÄIT]])=0,\"\",SUM(Kulud[[#This Row],[HOTELL]:[TRANSPORT]],Kulud[[#This Row],[EINED]:[MUU]],((Kulud[[#This Row],[LÄBISÕIDUMÕÕDIKU \nLÕPPNÄIT]]-Kulud[[#This Row],[LÄBISÕIDUMÕÕDIKU \nALGNÄIT]])*(Läbisõidutariif))))","v":{"v":725,"d":"725.00 €"}}]
[{"$nulls":11},{"$f":"IF(COUNTA(Kulud[[#This Row],[LÄBISÕIDUMÕÕDIKU \nALGNÄIT]:[LÄBISÕIDUMÕÕDIKU \nLÕPPNÄIT]])=2,(Kulud[[#This Row],[LÄBISÕIDUMÕÕDIKU \nLÕPPNÄIT]]-Kulud[[#This Row],[LÄBISÕIDUMÕÕDIKU \nALGNÄIT]])*Läbisõidutariif,\"\")","v":""},{"$f":"IF(COUNTA(Kulud[[#This Row],[KUUPÄEV]:[LÄBISÕIDUMÕÕDIKU \nLÕPPNÄIT]])=0,\"\",SUM(Kulud[[#This Row],[HOTELL]:[TRANSPORT]],Kulud[[#This Row],[EINED]:[MUU]],((Kulud[[#This Row],[LÄBISÕIDUMÕÕDIKU \nLÕPPNÄIT]]-Kulud[[#This Row],[LÄBISÕIDUMÕÕDIKU \nALGNÄIT]])*(Läbisõidutariif))))","v":""}]
[{"$nulls":11},{"$f":"IF(COUNTA(Kulud[[#This Row],[LÄBISÕIDUMÕÕDIKU \nALGNÄIT]:[LÄBISÕIDUMÕÕDIKU \nLÕPPNÄIT]])=2,(Kulud[[#This Row],[LÄBISÕIDUMÕÕDIKU \nLÕPPNÄIT]]-Kulud[[#This Row],[LÄBISÕIDUMÕÕDIKU \nALGNÄIT]])*Läbisõidutariif,\"\")","v":""},{"$f":"IF(COUNTA(Kulud[[#This Row],[KUUPÄEV]:[LÄBISÕIDUMÕÕDIKU \nLÕPPNÄIT]])=0,\"\",SUM(Kulud[[#This Row],[HOTELL]:[TRANSPORT]],Kulud[[#This Row],[EINED]:[MUU]],((Kulud[[#This Row],[LÄBISÕIDUMÕÕDIKU \nLÕPPNÄIT]]-Kulud[[#This Row],[LÄBISÕIDUMÕÕDIKU \nALGNÄIT]])*(Läbisõidutariif))))","v":""}]
[{"$nulls":11},{"$f":"IF(COUNTA(Kulud[[#This Row],[LÄBISÕIDUMÕÕDIKU \nALGNÄIT]:[LÄBISÕIDUMÕÕDIKU \nLÕPPNÄIT]])=2,(Kulud[[#This Row],[LÄBISÕIDUMÕÕDIKU \nLÕPPNÄIT]]-Kulud[[#This Row],[LÄBISÕIDUMÕÕDIKU \nALGNÄIT]])*Läbisõidutariif,\"\")","v":""},{"$f":"IF(COUNTA(Kulud[[#This Row],[KUUPÄEV]:[LÄBISÕIDUMÕÕDIKU \nLÕPPNÄIT]])=0,\"\",SUM(Kulud[[#This Row],[HOTELL]:[TRANSPORT]],Kulud[[#This Row],[EINED]:[MUU]],((Kulud[[#This Row],[LÄBISÕIDUMÕÕDIKU \nLÕPPNÄIT]]-Kulud[[#This Row],[LÄBISÕIDUMÕÕDIKU \nALGNÄIT]])*(Läbisõidutariif))))","v":""}]
[{"$nulls":11},{"$f":"IF(COUNTA(Kulud[[#This Row],[LÄBISÕIDUMÕÕDIKU \nALGNÄIT]:[LÄBISÕIDUMÕÕDIKU \nLÕPPNÄIT]])=2,(Kulud[[#This Row],[LÄBISÕIDUMÕÕDIKU \nLÕPPNÄIT]]-Kulud[[#This Row],[LÄBISÕIDUMÕÕDIKU \nALGNÄIT]])*Läbisõidutariif,\"\")","v":""},{"$f":"IF(COUNTA(Kulud[[#This Row],[KUUPÄEV]:[LÄBISÕIDUMÕÕDIKU \nLÕPPNÄIT]])=0,\"\",SUM(Kulud[[#This Row],[HOTELL]:[TRANSPORT]],Kulud[[#This Row],[EINED]:[MUU]],((Kulud[[#This Row],[LÄBISÕIDUMÕÕDIKU \nLÕPPNÄIT]]-Kulud[[#This Row],[LÄBISÕIDUMÕÕDIKU \nALGNÄIT]])*(Läbisõidutariif))))","v":""}]
[{"$nulls":11},{"$f":"IF(COUNTA(Kulud[[#This Row],[LÄBISÕIDUMÕÕDIKU \nALGNÄIT]:[LÄBISÕIDUMÕÕDIKU \nLÕPPNÄIT]])=2,(Kulud[[#This Row],[LÄBISÕIDUMÕÕDIKU \nLÕPPNÄIT]]-Kulud[[#This Row],[LÄBISÕIDUMÕÕDIKU \nALGNÄIT]])*Läbisõidutariif,\"\")","v":""},{"$f":"IF(COUNTA(Kulud[[#This Row],[KUUPÄEV]:[LÄBISÕIDUMÕÕDIKU \nLÕPPNÄIT]])=0,\"\",SUM(Kulud[[#This Row],[HOTELL]:[TRANSPORT]],Kulud[[#This Row],[EINED]:[MUU]],((Kulud[[#This Row],[LÄBISÕIDUMÕÕDIKU \nLÕPPNÄIT]]-Kulud[[#This Row],[LÄBISÕIDUMÕÕDIKU \nALGNÄIT]])*(Läbisõidutariif))))","v":""}]
[{"$nulls":11},{"$f":"IF(COUNTA(Kulud[[#This Row],[LÄBISÕIDUMÕÕDIKU \nALGNÄIT]:[LÄBISÕIDUMÕÕDIKU \nLÕPPNÄIT]])=2,(Kulud[[#This Row],[LÄBISÕIDUMÕÕDIKU \nLÕPPNÄIT]]-Kulud[[#This Row],[LÄBISÕIDUMÕÕDIKU \nALGNÄIT]])*Läbisõidutariif,\"\")","v":""},{"$f":"IF(COUNTA(Kulud[[#This Row],[KUUPÄEV]:[LÄBISÕIDUMÕÕDIKU \nLÕPPNÄIT]])=0,\"\",SUM(Kulud[[#This Row],[HOTELL]:[TRANSPORT]],Kulud[[#This Row],[EINED]:[MUU]],((Kulud[[#This Row],[LÄBISÕIDUMÕÕDIKU \nLÕPPNÄIT]]-Kulud[[#This Row],[LÄBISÕIDUMÕÕDIKU \nALGNÄIT]])*(Läbisõidutariif))))","v":""}]
[{"$nulls":11},{"$f":"IF(COUNTA(Kulud[[#This Row],[LÄBISÕIDUMÕÕDIKU \nALGNÄIT]:[LÄBISÕIDUMÕÕDIKU \nLÕPPNÄIT]])=2,(Kulud[[#This Row],[LÄBISÕIDUMÕÕDIKU \nLÕPPNÄIT]]-Kulud[[#This Row],[LÄBISÕIDUMÕÕDIKU \nALGNÄIT]])*Läbisõidutariif,\"\")","v":""},{"$f":"IF(COUNTA(Kulud[[#This Row],[KUUPÄEV]:[LÄBISÕIDUMÕÕDIKU \nLÕPPNÄIT]])=0,\"\",SUM(Kulud[[#This Row],[HOTELL]:[TRANSPORT]],Kulud[[#This Row],[EINED]:[MUU]],((Kulud[[#This Row],[LÄBISÕIDUMÕÕDIKU \nLÕPPNÄIT]]-Kulud[[#This Row],[LÄBISÕIDUMÕÕDIKU \nALGNÄIT]])*(Läbisõidutariif))))","v":""}]
[{"$nulls":11},{"$f":"IF(COUNTA(Kulud[[#This Row],[LÄBISÕIDUMÕÕDIKU \nALGNÄIT]:[LÄBISÕIDUMÕÕDIKU \nLÕPPNÄIT]])=2,(Kulud[[#This Row],[LÄBISÕIDUMÕÕDIKU \nLÕPPNÄIT]]-Kulud[[#This Row],[LÄBISÕIDUMÕÕDIKU \nALGNÄIT]])*Läbisõidutariif,\"\")","v":""},{"$f":"IF(COUNTA(Kulud[[#This Row],[KUUPÄEV]:[LÄBISÕIDUMÕÕDIKU \nLÕPPNÄIT]])=0,\"\",SUM(Kulud[[#This Row],[HOTELL]:[TRANSPORT]],Kulud[[#This Row],[EINED]:[MUU]],((Kulud[[#This Row],[LÄBISÕIDUMÕÕDIKU \nLÕPPNÄIT]]-Kulud[[#This Row],[LÄBISÕIDUMÕÕDIKU \nALGNÄIT]])*(Läbisõidutariif))))","v":""}]
[{"$nulls":11},{"$f":"IF(COUNTA(Kulud[[#This Row],[LÄBISÕIDUMÕÕDIKU \nALGNÄIT]:[LÄBISÕIDUMÕÕDIKU \nLÕPPNÄIT]])=2,(Kulud[[#This Row],[LÄBISÕIDUMÕÕDIKU \nLÕPPNÄIT]]-Kulud[[#This Row],[LÄBISÕIDUMÕÕDIKU \nALGNÄIT]])*Läbisõidutariif,\"\")","v":""},{"$f":"IF(COUNTA(Kulud[[#This Row],[KUUPÄEV]:[LÄBISÕIDUMÕÕDIKU \nLÕPPNÄIT]])=0,\"\",SUM(Kulud[[#This Row],[HOTELL]:[TRANSPORT]],Kulud[[#This Row],[EINED]:[MUU]],((Kulud[[#This Row],[LÄBISÕIDUMÕÕDIKU \nLÕPPNÄIT]]-Kulud[[#This Row],[LÄBISÕIDUMÕÕDIKU \nALGNÄIT]])*(Läbisõidutariif))))","v":""}]
[null,"KOGUSUMMMAD",null,null,{"$f":"SUBTOTAL(109,Kulud[HOTELL])","v":{"v":445,"d":"445.00 €"}},{"$f":"SUBTOTAL(109,Kulud[TRANSPORT])","v":{"v":225,"d":"225.00 €"}},{"$f":"SUBTOTAL(109,Kulud[EINED])","v":{"v":20,"d":"20.00 €"}},{"$f":"SUBTOTAL(109,Kulud[TELEFON])","v":0},{"$f":"SUBTOTAL(109,Kulud[MUU])","v":{"v":55,"d":"55.00 €"}},{"$nulls":3},{"$f":"SUBTOTAL(109,Kulud[[KOKKU ]])","v":{"v":813.8500000000004,"d":"813.85 €"}}]
[{"$nulls":11},"ETTEMAKSED",{"v":0,"d":"0.00 €"}]
[{"$nulls":11},"KOKKU",{"$f":"Kulud[[#Totals],[KOKKU ]]-Ettemaksed","v":{"v":813.8500000000004,"d":"813.85 €"}}]